fUSD/lending_fUSD_20250720
["ID","MTS","AMOUNT","RATE_DAILY","PERIOD"]
[373535912,1753033864482,-151.0,0.00019178,2]
[373535914,1753033864492,-151.0,0.00019178,2]
[373535916,1753033864501,-605.64571178,0.00019178,2]
[373535918,1753033864513,-151.0,0.00019178,2]
[373535920,1753033864522,-811.31,0.00019178,2]
[373535922,1753033864531,-151.0,0.00019178,2]
[373535923,1753033864540,-151.0,0.00019178,2]
[373535924,1753033864549,-151.0,0.00019178,2]
[373535925,1753033864558,-480.0,0.00019178,2]
[373535926,1753033864567,-1210.77,0.00019178,2]
[373535927,1753033864576,-304.851013,0.00019178,2]
[373535928,1753033864585,-480.0,0.00019178,2]
[373535929,1753033864594,-480.0,0.00019178,2]
[373535930,1753033864603,-304.851013,0.00019178,2]
[373535931,1753033864612,-480.0,0.00019178,2]
[373535932,1753033864621,-480.0,0.00019178,2]
[373535933,1753033864630,-480.0,0.00019178,2]
[373535934,1753033864639,-304.851013,0.00019178,2]
[373535935,1753033864647,-304.851013,0.00019178,2]
[373535936,1753033864657,-480.0,0.00019178,2]
[373535938,1753033864665,-304.851013,0.00019178,2]
[373535939,1753033864674,-555.67,0.00019178,2]
[373535941,1753033864684,-304.851013,0.00019178,2]
[373535943,1753033864693,-480.0,0.00019178,2]
[373535945,1753033864702,-480.0,0.00019178,2]
[373535947,1753033864711,-304.851013,0.00019178,2]
[373535949,1753033864720,-480.0,0.00019178,2]
[373535951,1753033864730,-510.68,0.00019178,2]
[373535953,1753033864739,-795.93,0.00019178,2]
[373535955,1753033864748,-304.851013,0.00019178,2]
[373535957,1753033864757,-480.0,0.00019178,2]
[373535959,1753033864767,-304.851013,0.00019178,2]
[373535961,1753033864776,-304.851013,0.00019178,2]
[373535963,1753033864785,-427.62940255,0.00019178,2]
[373535965,1753033864796,-304.851013,0.00019178,2]
[373535967,1753033864805,-304.851013,0.00019178,2]
[373535969,1753033864815,-480.0,0.00019178,2]
[373535971,1753033864823,-304.851013,0.00019178,2]
[373535973,1753033864833,-304.851013,0.00019178,2]
[373535975,1753033864842,-304.851013,0.00019178,2]
[373535978,1753033864852,-304.851013,0.00019178,2]
[373535979,1753033864862,-304.851013,0.00019178,2]
[373535981,1753033864871,-304.851013,0.00019178,2]
[373535983,1753033864880,-304.851013,0.00019178,2]
[373535985,1753033864890,-480.0,0.00019178,2]
[373535987,1753033864900,-304.851012,0.00019178,2]
[373535989,1753033864909,-480.0,0.00019178,2]
[373535991,1753033864918,-480.0,0.00019178,2]
[373535993,1753033864928,-1408.02,0.00019178,2]
[373535995,1753033864938,-5384.18,0.00019178,2]
[373535998,1753033864949,-480.0,0.00019178,2]
[373536000,1753033864959,-480.0,0.00019178,2]
[373536002,1753033864968,-151.0,0.00019178,2]
[373536004,1753033864977,-151.0,0.00019178,2]
[373536006,1753033864987,-151.0,0.00019178,2]
[373536008,1753033864996,-151.0,0.00019178,2]
[373536009,1753033865006,-906.38,0.00019178,2]
[373536011,1753033865015,-151.0,0.00019178,2]
[373536014,1753033865024,-151.0,0.00019178,2]
[373536016,1753033865034,-299.460164,0.00019178,2]
[373536017,1753033865045,-480.0,0.00019178,2]
[373536019,1753033865054,-480.0,0.00019178,2]
[373536022,1753033865065,-480.0,0.00019178,2]
[373536024,1753033865075,-1162.79,0.00019178,2]
[373536026,1753033865084,-480.0,0.00019178,2]
[373536028,1753033865093,-1514.11,0.00019178,2]
[373536030,1753033865102,-2580.35,0.00019178,2]
[373536032,1753033865111,-480.0,0.00019178,2]
[373536034,1753033865121,-749.36,0.00019178,2]
[373536035,1753033865130,-480.0,0.00019178,2]
[373536038,1753033865140,-572.98,0.00019178,2]
[373536039,1753033865150,-572.98,0.00019178,2]
[373536041,1753033865159,-480.0,0.00019178,2]
[373536044,1753033865169,-572.98,0.00019178,2]
[373536046,1753033865178,-572.98,0.00019178,2]
[373536048,1753033865188,-572.98,0.00019178,2]
[373536050,1753033865197,-572.98,0.00019178,2]
[373536051,1753033865206,-480.0,0.00019178,2]
[373536052,1753033865215,-572.98,0.00019178,2]
[373536053,1753033865224,-572.98,0.00019178,2]
[373536054,1753033865233,-572.98,0.00019178,2]
[373536055,1753033865242,-572.98,0.00019178,2]
[373536056,1753033865251,-572.98,0.00019178,2]
[373536057,1753033865260,-572.98,0.00019178,2]
[373536058,1753033865273,-572.98,0.00019178,2]
[373536059,1753033865282,-480.0,0.00019178,2]
[373536060,1753033865295,-608.04,0.00019178,2]
[373536061,1753033865304,-151.0,0.00019178,2]
[373536062,1753033865314,-151.0,0.00019178,2]
[373536063,1753033865323,-725.96,0.00019178,2]
[373536064,1753033865332,-480.0,0.00019178,2]
[373536065,1753033865342,-151.0,0.00019178,2]
[373536066,1753033865352,-986.75,0.00019178,2]
[373536067,1753033865361,-836.99,0.00019178,2]
[373536068,1753033865370,-151.0,0.00019178,2]
[373536069,1753033865379,-151.0,0.00019178,2]
[373536070,1753033865389,-825.22,0.00019178,2]
[373536071,1753033865398,-480.0,0.00019178,2]
[373536072,1753033865407,-158.853652,0.00019178,2]
[373536073,1753033865416,-480.0,0.00019178,2]
[373536074,1753033865425,-480.0,0.00019178,2]
[373536075,1753033865435,-1020.65,0.00019178,2]
[373536076,1753033865444,-480.0,0.00019178,2]
[373536077,1753033865453,-355.75766611,0.00019178,2]
[373536078,1753033865463,-480.0,0.00019178,2]
[373536079,1753033865472,-480.0,0.00019178,2]
[373536080,1753033865482,-480.0,0.00019178,2]
[373536081,1753033865491,-480.0,0.00019178,2]
[373536082,1753033865501,-930.939445,0.00019178,2]
[373536083,1753033865511,-480.0,0.00019178,2]
[373536084,1753033865520,-930.939445,0.00019178,2]
[373536085,1753033865529,-480.0,0.00019178,2]
[373536086,1753033865540,-480.0,0.00019178,2]
[373536088,1753033865549,-480.0,0.00019178,2]
[373536090,1753033865559,-930.939445,0.00019178,2]
[373536092,1753033865568,-2351.31,0.00019178,2]
[373536094,1753033865577,-930.939445,0.00019178,2]
[373536096,1753033865586,-480.0,0.00019178,2]
[373536098,1753033865595,-480.0,0.00019178,2]
[373536100,1753033865605,-930.939445,0.00019178,2]
[373536102,1753033865614,-480.0,0.00019178,2]
[373536104,1753033865623,-480.0,0.00019178,2]
[373536106,1753033865633,-930.939445,0.00019178,2]
[373536108,1753033865642,-930.939445,0.00019178,2]
[373536110,1753033865652,-930.939445,0.00019178,2]
[373536112,1753033865663,-930.939445,0.00019178,2]
[373536114,1753033865672,-930.939445,0.00019178,2]
[373536116,1753033865682,-930.939445,0.00019178,2]
[373536118,1753033865691,-453.65220178,0.00019178,2]
[373536120,1753033865700,-460.0,0.00019178,2]
[373536122,1753033865710,-930.939445,0.00019178,2]
[373536124,1753033865719,-480.0,0.00019178,2]
[373536126,1753033865729,-930.939445,0.00019178,2]
[373536128,1753033865739,-930.939445,0.00019178,2]
[373536130,1753033865749,-480.0,0.00019178,2]
[373536132,1753033865758,-1029.51,0.00019178,2]
[373536134,1753033865768,-480.0,0.00019178,2]
[373536136,1753033865777,-480.0,0.00019178,2]
[373536137,1753033865786,-930.939445,0.00019178,2]
[373536138,1753033865796,-930.939445,0.00019178,2]
[373536139,1753033865806,-930.939445,0.00019178,2]
[373536140,1753033865815,-930.939445,0.00019178,2]
[373536141,1753033865824,-930.939445,0.00019178,2]
[373536148,1753033865834,-930.939447,0.00019178,2]
[373536152,1753033866067,-551.22,0.00019178,2]
[373536154,1753033866077,-480.0,0.00019178,2]
[373536156,1753033866087,-999.5,0.00019178,2]
[373536158,1753033866096,-480.0,0.00019178,2]
[373536160,1753033866105,-480.0,0.00019178,2]
[373536162,1753033866115,-584.90988496,0.00019178,2]
[373536164,1753033866124,-480.0,0.00019178,2]
[373536167,1753033866134,-480.0,0.00019178,2]
[373536169,1753033866143,-480.0,0.00019178,2]
[373536171,1753033866153,-480.0,0.00019178,2]
[373536173,1753033866162,-738.46,0.00019178,2]
[373536174,1753033866171,-480.0,0.00019178,2]
[373536177,1753033866181,-1469.04,0.00019178,2]
[373536179,1753033866191,-480.0,0.00019178,2]
[373536181,1753033866200,-546.26215622,0.00019178,2]
[373536183,1753033866210,-480.0,0.00019178,2]
[373536185,1753033866219,-480.0,0.00019178,2]
[373536187,1753033866228,-403.94578614,0.00019178,2]
[373536189,1753033866237,-480.0,0.00019178,2]
[373536191,1753033866246,-480.0,0.00019178,2]
[373536193,1753033866256,-480.0,0.00019178,2]
[373536195,1753033866266,-480.0,0.00019178,2]
[373536196,1753033866280,-480.0,0.00019178,2]
[373536197,1753033866289,-480.0,0.00019178,2]
[373536198,1753033866298,-480.0,0.00019178,2]
[373536199,1753033866308,-9204.57,0.00019178,2]
[373536200,1753033866318,-480.0,0.00019178,2]
[373536201,1753033866327,-480.0,0.00019178,2]
[373536202,1753033866336,-480.0,0.00019178,2]
[373536203,1753033866346,-480.0,0.00019178,2]
[373536204,1753033866356,-480.0,0.00019178,2]
[373536205,1753033866365,-480.0,0.00019178,2]
[373536206,1753033866374,-480.0,0.00019178,2]
[373536208,1753033866384,-480.0,0.00019178,2]
[373536210,1753033866393,-480.0,0.00019178,2]
[373536212,1753033866402,-1253.72,0.00019178,2]
[373536214,1753033866411,-480.0,0.00019178,2]
[373536216,1753033866420,-480.0,0.00019178,2]
[373536218,1753033866430,-500.0,0.00019178,2]
[373536220,1753033866439,-480.0,0.00019178,2]
[373536222,1753033866448,-500.0,0.00019178,2]
[373536224,1753033866457,-500.0,0.00019178,2]
[373536226,1753033866467,-500.0,0.00019178,2]
[373536228,1753033866476,-480.0,0.00019178,2]
[373536230,1753033866486,-480.0,0.00019178,2]
[373536232,1753033866495,-974.42,0.00019178,2]
[373536234,1753033866505,-429.61677001,0.00019178,2]
[373536236,1753033866514,-480.0,0.00019178,2]
[373536238,1753033866523,-1588.14,0.00019178,2]
[373536240,1753033866533,-480.0,0.00019178,2]
[373536242,1753033866546,-480.0,0.00019178,2]
[373536244,1753033866555,-440.6064368,0.00019178,2]
[373536246,1753033866564,-480.0,0.00019178,2]
[373536248,1753033866574,-480.0,0.00019178,2]
[373536250,1753033866584,-480.0,0.00019178,2]
[373536252,1753033866594,-480.0,0.00019178,2]
[373536254,1753033866604,-480.0,0.00019178,2]
[373536256,1753033866614,-528.51,0.00019178,2]
[373536257,1753033866623,-480.0,0.00019178,2]
[373536258,1753033866633,-781.82,0.00019178,2]
[373536259,1753033866642,-480.0,0.00019178,2]
[373536260,1753033866651,-923.36,0.00019178,2]
[373536261,1753033866661,-151.0,0.00019178,2]
[373536262,1753033866671,-151.0,0.00019178,2]
[373536263,1753033866680,-480.0,0.00019178,2]
[373536264,1753033866690,-1381.07715167,0.00019178,2]
[373536267,1753033945079,1932.600228,0.0003,120]
[373536269,1753034062443,1832.64769235,0.000301,120]
[373536307,1753034530254,343.55,0.0002637,120]
[373536309,1753034543182,1000.0,0.00030137,120]
[373536320,1753034642178,250.0,0.00016238,2]
[373536329,1753034742304,-166.12524817,0.00017334,2]
[373536330,1753034742325,-150.0,0.00017334,2]
[373536331,1753034742345,-150.0,0.00017334,2]
[373536332,1753034742364,-150.0,0.00017334,2]
[373536333,1753034742384,-143.03651086,0.00017334,2]
[373536337,1753034766220,597.75641826,0.00023,30]
[373536346,1753034837177,-765.22597998,0.00017234,2]
[373536347,1753034847121,-152.82867183,0.00017234,2]
[373536348,1753034847141,-6.96348914,0.00017334,2]
[373536349,1753034847162,-76.8827964,0.00017334,2]
[373536359,1753035008091,315.15927901,0.000211,28]
[373536363,1753035031422,-517.0,0.00016606,2]
[373536364,1753035031431,-191.84501539,0.00017279,2]
[373536365,1753035031440,-1000.0,0.00017307,2]
[373536366,1753035031449,-300.0,0.00017307,2]
[373536367,1753035031459,-73.1172036,0.00017334,2]
[373536368,1753035031468,-150.0,0.00017334,2]
[373536369,1753035031477,-150.0,0.00017334,2]
[373536370,1753035031487,-1000.0,0.00017335,2]
[373536371,1753035031496,-300.0,0.00017338,2]
[373536372,1753035031507,-666.0,0.00017362,2]
[373536373,1753035031516,-200.0,0.00017379,2]
[373536374,1753035031525,-250.0,0.00017407,2]
[373536375,1753035031534,-239.97,0.0001741,2]
[373536376,1753035031544,-1200.0,0.00017492,2]
[373536377,1753035031553,-291.0,0.000175,2]
[373536378,1753035031563,-919.09,0.00017502,2]
[373536379,1753035031573,-300.0,0.0001753,2]
[373536380,1753035031583,-300.0,0.0001753,2]
[373536381,1753035031592,-191.84501538,0.00017533,2]
[373536382,1753035031602,-343.55,0.0001758,2]
[373536383,1753035031612,-1059.0,0.00017584,2]
[373536384,1753035031634,-191.84501538,0.00017786,2]
[373536385,1753035031646,-2751.0,0.00017814,2]
[373536386,1753035031656,-211.13,0.00017829,2]
[373536387,1753035031665,-211.13,0.00017839,2]
[373536388,1753035031675,-321.44,0.0001784,2]
[373536389,1753035031684,-211.13,0.00017848,2]
[373536390,1753035031694,-211.13,0.00017858,2]
[373536391,1753035031704,-550.0,0.00017858,2]
[373536392,1753035031714,-211.13,0.00017867,2]
[373536393,1753035031725,-151.0,0.00017869,2]
[373536394,1753035031735,-500.0,0.00017869,2]
[373536395,1753035031745,-500.0,0.00017869,2]
[373536396,1753035031755,-500.0,0.00017869,2]
[373536397,1753035031765,-500.0,0.00017869,2]
[373536398,1753035031774,-500.0,0.00017869,2]
[373536399,1753035031785,-500.0,0.00017869,2]
[373536400,1753035031794,-500.0,0.00017869,2]
[373536401,1753035031803,-500.0,0.00017869,2]
[373536402,1753035031812,-500.0,0.00017869,2]
[373536403,1753035031822,-500.0,0.00017869,2]
[373536404,1753035031831,-202.491236,0.00017869,2]
[373536405,1753035031840,-600.0,0.00017869,2]
[373536406,1753035031850,-600.0,0.00017869,2]
[373536407,1753035031859,-600.0,0.00017869,2]
[373536408,1753035031868,-600.0,0.00017869,2]
[373536409,1753035031877,-151.0,0.00017869,2]
[373536410,1753035031886,-600.0,0.00017869,2]
[373536411,1753035031895,-151.0,0.00017869,2]
[373536412,1753035031905,-600.0,0.00017869,2]
[373536413,1753035031914,-151.0,0.00017869,2]
[373536414,1753035031923,-600.0,0.00017869,2]
[373536415,1753035031932,-151.0,0.00017869,2]
[373536416,1753035031941,-600.0,0.00017869,2]
[373536417,1753035031950,-500.0,0.00017869,2]
[373536418,1753035031960,-151.0,0.00017869,2]
[373536419,1753035031969,-600.0,0.00017869,2]
[373536420,1753035031978,-500.0,0.00017869,2]
[373536421,1753035031987,-151.0,0.00017869,2]
[373536422,1753035031996,-600.0,0.00017869,2]
[373536423,1753035032008,-151.0,0.00017869,2]
[373536424,1753035032017,-600.0,0.00017869,2]
[373536425,1753035032026,-151.0,0.00017869,2]
[373536426,1753035032036,-600.0,0.00017869,2]
[373536427,1753035032045,-151.0,0.00017869,2]
[373536428,1753035032054,-600.0,0.00017869,2]
[373536429,1753035032063,-600.0,0.00017869,2]
[373536430,1753035032072,-151.0,0.00017869,2]
[373536431,1753035032081,-209.45517964,0.00017869,2]
[373536432,1753035032091,-600.0,0.00017869,2]
[373536433,1753035032099,-600.0,0.00017869,2]
[373536434,1753035032109,-400.00000001,0.00017869,2]
[373536435,1753035032118,-211.13,0.00017876,2]
[373536436,1753035032129,-23900.0,0.0001788,2]
[373536437,1753035032400,-211.13,0.00017886,2]
[373536438,1753035032429,-211.13,0.00017895,2]
[373536439,1753035032440,-211.13,0.00017905,2]
[373536440,1753035032450,-4399.0,0.00017907,2]
[373536441,1753035032459,-211.13,0.00017914,2]
[373536442,1753035032469,-211.13,0.00017923,2]
[373536443,1753035032478,-211.13,0.00017933,2]
[373536444,1753035032487,-211.13,0.00017942,2]
[373536445,1753035032496,-211.13,0.00017952,2]
[373536446,1753035032506,-211.13,0.00017961,2]
[373536447,1753035032515,-211.13,0.0001797,2]
[373536448,1753035032524,-150.0,0.00017976,2]
[373536449,1753035032533,-211.13,0.0001798,2]
[373536450,1753035032542,-211.13,0.00017989,2]
[373536451,1753035032551,-211.13,0.00017999,2]
[373536452,1753035032561,-211.13,0.00018008,2]
[373536453,1753035032571,-11495.09,0.00018069,2]
[373536454,1753035032580,-600.0,0.0001809,2]
[373536455,1753035032590,-7142.856,0.00018102,2]
[373536456,1753035032599,-151.0,0.00018102,2]
[373536457,1753035032610,-231.28369723,0.00018102,2]
[373536458,1753035032622,-231.28369723,0.00018102,2]
[373536459,1753035032631,-3995.61090714,0.00018102,2]
[373536460,1753035032640,-359.76179104,0.00018102,2]
[373536461,1753035032650,-213.96859442,0.00018102,2]
[373536462,1753035032659,-228.92,0.00018189,2]
[373536463,1753035032670,-963.07,0.00018202,2]
[373536464,1753035032679,-425.15,0.00018203,2]
[373536465,1753035032688,-150.0,0.00018297,2]
[373536466,1753035032700,-263.0,0.00018325,2]
[373536467,1753035032709,-250.0,0.00018327,2]
[373536468,1753035032719,-360.69,0.00018329,2]
[373536469,1753035032728,-168.61,0.00018333,2]
[373536470,1753035032737,-168.0,0.00018375,2]
[373536471,1753035032748,-168.0,0.00018386,2]
[373536472,1753035032758,-168.0,0.00018404,2]
[373536473,1753035032767,-168.0,0.00018424,2]
[373536474,1753035032778,-168.0,0.00018442,2]
[373536475,1753035032788,-300.0,0.000185,6]
[373536476,1753035032798,-168.0,0.00018509,2]
[373536477,1753035032807,-8775.92,0.00018533,2]
[373536478,1753035032817,-2800.08,0.00018533,2]
[373536479,1753035032827,-150.99,0.00018533,2]
[373536480,1753035032836,-299.99,0.00018533,4]
[373536481,1753035032846,-8172.9,0.00018533,2]
[373536482,1753035032857,-150.99,0.00018533,2]
[373536483,1753035032867,-168.0,0.00018556,2]
[373536484,1753035032877,-151.0,0.00018588,2]
[373536485,1753035032887,-151.0,0.00018596,2]
[373536486,1753035032897,-700.0,0.000186,6]
[373536487,1753035032908,-151.0,0.00018603,2]
[373536488,1753035032917,-151.0,0.00018604,2]
[373536489,1753035032927,-150.0,0.00018618,2]
[373536490,1753035032936,-1000.0,0.0001863,2]
[373536491,1753035032945,-7407.141672,0.0001865,2]
[373536492,1753035032956,-239.84119403,0.0001865,2]
[373536493,1753035032966,-696.28868372,0.00018696,2]
[373536494,1753035032975,-1100.0,0.000187,6]
[373536495,1753035032985,-263.0,0.00018731,2]
[373536496,1753035032995,-321.44,0.00018732,2]
[373536497,1753035033007,-285.0,0.0001878,2]
[373536498,1753035033016,-1500.0,0.000188,6]
[373536499,1753035033026,-263.0,0.00018872,2]
[373536500,1753035033036,-168.0,0.00018876,2]
[373536501,1753035033046,-1900.0,0.000189,6]
[373536502,1753035033056,-218.97466862,0.000189,2]
[373536503,1753035033066,-263.0,0.00018905,2]
[373536504,1753035033077,-195.73938907,0.00018916,2]
[373536505,1753035033087,-4724.89297121,0.00018916,2]
[373536506,1753035033097,-263.0,0.00018925,2]
[373536507,1753035033106,-514.0,0.00018947,2]
[373536508,1753035033116,-2614.33020657,0.0001897,2]
[373536509,1753035033125,-4724.89297117,0.0001897,2]
[373536510,1753035033137,-1189.576,0.00018978,2]
[373536511,1753035033147,-12021.22253731,0.00018978,2]
[373536512,1753035033156,-200.0,0.00018991,2]
[373536513,1753035033167,-168.0,0.00018997,2]
[373536514,1753035033177,-5188.08954675,0.00019,2]
[373536515,1753035033188,-250.0,0.00019007,2]
[373536516,1753035033198,-1000.0,0.00019007,2]
[373536517,1753035033207,-300.0,0.00019007,2]
[373536518,1753035033217,-300.0,0.00019007,2]
[373536519,1753035033226,-360.69,0.00019016,2]
[373536520,1753035033236,-263.0,0.00019021,2]
[373536521,1753035033246,-4724.89297117,0.00019025,2]
[373536522,1753035033256,-696.28868373,0.0001905,2]
[373536523,1753035033266,-263.0,0.00019051,2]
[373536524,1753035033276,-2500.0,0.00019067,2]
[373536525,1753035033286,-188.71857815,0.00019067,2]
[373536526,1753035033296,-2137.59810808,0.00019067,2]
[373536527,1753035033306,-1000.0,0.00019068,2]
[373536528,1753035033315,-300.0,0.00019068,2]
[373536529,1753035033325,-250.0,0.00019068,2]
[373536530,1753035033335,-1000.0,0.00019068,2]
[373536531,1753035033344,-250.6987,0.00019078,2]
[373536532,1753035033353,-273.97140498,0.00019078,2]
[373536533,1753035033362,-375.16394281,0.00019078,2]
[373536534,1753035033371,-46325.4809,0.00019078,2]
[373536535,1753035033380,-2430.4393,0.00019078,2]
[373536536,1753035033389,-5000.0,0.00019078,2]
[373536537,1753035033399,-2500.0,0.00019078,2]
[373536538,1753035033408,-4724.89297117,0.00019079,2]
[373536539,1753035033417,-517.0753,0.00019082,2]
[373536540,1753035033426,-839.31074571,0.00019098,2]
[373536541,1753035033435,-160.0,0.00019098,2]
[373536542,1753035033444,-210.86573235,0.00019098,2]
[373536543,1753035033453,-2614.28,0.000191,2]
[373536544,1753035033462,-2137.59810801,0.00019105,2]
[373536545,1753035033472,-4724.89297117,0.00019134,2]
[373536546,1753035033482,-420.0,0.00019136,2]
[373536547,1753035033491,-2137.59810801,0.00019142,2]
[373536548,1753035033500,-218.97466858,0.0001915,2]
[373536549,1753035033511,-168.0,0.00019154,2]
[373536550,1753035033520,-517.0,0.00019159,5]
[373536551,1753035033530,-386.10258063,0.00019167,2]
[373536552,1753035033540,-1897.2117091,0.00019167,2]
[373536553,1753035033549,-498.80253662,0.00019168,2]
[373536554,1753035033558,-343.41220821,0.00019173,2]
[373536555,1753035033568,-500.0,0.00019173,2]
[373536556,1753035033577,-500.0,0.00019173,2]
[373536557,1753035033587,-501.0146501,0.00019173,2]
[373536558,1753035033596,-500.0,0.00019173,2]
[373536559,1753035033605,-500.0,0.00019173,2]
[373536560,1753035033617,-299.72318445,0.00019173,2]
[373536561,1753035033627,-500.0,0.00019173,2]
[373536562,1753035033636,-501.44471162,0.00019173,2]
[373536563,1753035033646,-500.0,0.00019173,2]
[373536564,1753035033655,-3000.0,0.00019174,2]
[373536565,1753035033665,-301.47896173,0.00019174,2]
[373536566,1753035033674,-78937.107208,0.00019174,2]
[373536567,1753035033683,-301.288563,0.00019176,2]
[373536568,1753035033693,-1000.0,0.00019177,2]
[373536569,1753035033705,-1004.8739,0.00019177,2]
[373536570,1753035033715,-1841.999997,0.00019177,2]
[373536571,1753035033725,-300.0,0.00019177,2]
[373536572,1753035033736,-624.89503129,0.00019178,2]
[373536573,1753035033747,-49314.66752789,0.00019178,2]
[373536574,1753035033758,-151.0,0.00019178,2]
[373536575,1753035033767,-151.0,0.00019178,2]
[373536576,1753035033777,-151.0,0.00019178,2]
[373536577,1753035033787,-151.0,0.00019178,2]
[373536578,1753035033797,-151.0,0.00019178,2]
[373536579,1753035033807,-151.0,0.00019178,2]
[373536580,1753035033817,-151.0,0.00019178,2]
[373536581,1753035033827,-151.0,0.00019178,2]
[373536582,1753035033837,-200.552975,0.00019178,2]
[373536583,1753035033848,-151.0,0.00019178,2]
[373536584,1753035033858,-151.0,0.00019178,2]
[373536585,1753035033868,-151.0,0.00019178,2]
[373536586,1753035033878,-151.0,0.00019178,2]
[373536587,1753035033888,-151.0,0.00019178,2]
[373536588,1753035033897,-151.0,0.00019178,2]
[373536589,1753035033907,-151.0,0.00019178,2]
[373536590,1753035033917,-151.0,0.00019178,2]
[373536591,1753035033927,-151.0,0.00019178,2]
[373536592,1753035033937,-151.0,0.00019178,2]
[373536593,1753035033948,-151.0,0.00019178,2]
[373536594,1753035033958,-151.0,0.00019178,2]
[373536595,1753035033968,-151.0,0.00019178,2]
[373536596,1753035033978,-151.0,0.00019178,2]
[373536597,1753035033988,-151.0,0.00019178,2]
[373536598,1753035033998,-151.0,0.00019178,2]
[373536599,1753035034010,-151.0,0.00019178,2]
[373536600,1753035034020,-151.0,0.00019178,2]
[373536601,1753035034030,-151.0,0.00019178,2]
[373536602,1753035034040,-151.0,0.00019178,2]
[373536603,1753035034050,-151.0,0.00019178,2]
[373536604,1753035034060,-151.0,0.00019178,2]
[373536605,1753035034070,-156.795309,0.00019178,2]
[373536606,1753035034080,-184.379625,0.00019178,2]
[373536607,1753035034090,-184.89613,0.00019178,2]
[373536608,1753035034100,-151.0,0.00019178,2]
[373536609,1753035034110,-151.0,0.00019178,2]
[373536610,1753035034119,-151.0,0.00019178,2]
[373536611,1753035034129,-480.0,0.00019178,2]
[373536612,1753035034139,-151.0,0.00019178,2]
[373536613,1753035034149,-151.0,0.00019178,2]
[373536614,1753035034159,-151.0,0.00019178,2]
[373536615,1753035034169,-184.107189,0.00019178,2]
[373536616,1753035034179,-480.0,0.00019178,2]
[373536617,1753035034189,-480.0,0.00019178,2]
[373536618,1753035034199,-151.0,0.00019178,2]
[373536619,1753035034208,-151.0,0.00019178,2]
[373536620,1753035034218,-151.0,0.00019178,2]
[373536621,1753035034227,-151.0,0.00019178,2]
[373536622,1753035034237,-151.0,0.00019178,2]
[373536623,1753035034246,-151.0,0.00019178,2]
[373536624,1753035034255,-151.0,0.00019178,2]
[373536625,1753035034265,-151.0,0.00019178,2]
[373536626,1753035034274,-151.0,0.00019178,2]
[373536627,1753035034283,-220.45414,0.00019178,2]
[373536628,1753035034293,-220.45414,0.00019178,2]
[373536629,1753035034302,-151.0,0.00019178,2]
[373536630,1753035034312,-220.45414,0.00019178,2]
[373536631,1753035034321,-151.0,0.00019178,2]
[373536632,1753035034330,-220.45414,0.00019178,2]
[373536633,1753035034340,-151.0,0.00019178,2]
[373536634,1753035034349,-220.45414,0.00019178,2]
[373536635,1753035034358,-151.0,0.00019178,2]
[373536636,1753035034368,-151.0,0.00019178,2]